bitfinex-derivatives/quotes_SOLF0:USTF0_20250131
["timestamp","ask_amount","ask_price","bid_price","bid_amount"]
[1738286467568,3.19599704,237.83,237.76,11.5328777]
[1738286468063,7.3273777,237.84,237.76,11.5328777]
[1738286468266,4.2046,237.83,237.76,11.5328777]
[1738286468468,0.02914756,237.82,237.78,0.03163668]
[1738286469271,7.35652526,237.82,237.78,0.03163668]
[1738286469969,4.2051,237.79,237.78,0.03163668]
[1738286470171,7.3273777,237.8,237.7,7.3273777]
[1738286470472,7.3273777,237.75,237.68,7.3273777]
[1738286470669,7.3273777,237.73,237.66,7.3273777]
[1738286471171,0.02887323,237.72,237.67,0.03146508]
[1738286471967,7.3273777,237.71,237.67,0.03146508]
[1738286473972,4.2067,237.7,237.67,0.03146508]
[1738286474972,11.5343777,237.69,237.67,0.03146508]
[1738286476773,4.2071,237.68,237.67,0.03146508]
[1738286477173,7.3273777,237.69,237.57,7.3273777]
[1738286477370,4.2083,237.61,237.55,7.3273777]
[1738286478169,11.5354777,237.63,237.56,4.2092]
[1738286478472,0.02885388,237.6,237.56,0.0281696]
[1738286479174,0.02885388,237.6,237.57,4.209]
[1738286484277,0.02885388,237.6,237.57,11.5363777]
[1738286488975,0.02885388,237.6,237.59,11.5360777]
[1738286496878,0.02885388,237.6,237.56,0.0281696]
[1738286497280,7.3273777,237.59,237.56,0.0281696]
[1738286498186,4.2089,237.58,237.56,0.0281696]
[1738286500286,0.02885388,237.6,237.56,0.0281696]
[1738286500985,0.02885388,237.6,237.57,4.209]
[1738286502089,0.02885388,237.6,237.58,4.2088]
[1738286503285,0.02885388,237.6,237.59,4.2087]
[1738286505986,0.02885388,237.6,237.56,0.0281696]
[1738286507593,0.02885388,237.6,237.56,4.2372696]
[1738286509194,4.23735388,237.6,237.56,4.2372696]
[1738286510091,0.02885388,237.6,237.56,4.2372696]
[1738286510599,0.02885388,237.6,237.57,4.2089]
[1738286512099,0.02885388,237.6,237.56,0.0281696]
[1738286512298,0.02885388,237.6,237.56,4.2372696]
[1738286512694,0.02885388,237.6,237.56,0.0281696]
[1738286512901,0.02885388,237.6,237.57,4.209]
[1738286514201,0.02885388,237.6,237.58,4.2088]
[1738286515302,3.20030505,237.59,237.58,4.2088]
[1738286515799,0.02885388,237.6,237.58,4.2088]
[1738286517200,3.20242419,237.59,237.58,4.2088]
[1738286517601,10.52980189,237.59,237.56,0.0281696]
[1738286517801,11.5363777,237.57,237.56,0.0281696]
[1738286518105,14.73869998,237.57,237.56,0.0281696]
[1738286519199,7.41132228,237.57,237.56,0.0281696]
[1738286520099,3.20232228,237.57,237.56,0.0281696]
[1738286521194,3.20232228,237.57,237.56,4.2373696]
[1738286522602,0.02885388,237.6,237.56,0.0281696]
[1738286522803,3.20858834,237.59,237.58,4.2088]
[1738286523700,0.02885388,237.6,237.58,4.2088]
[1738286524007,0.02885388,237.6,237.56,4.2372696]
[1738286525705,11.5363777,237.57,237.56,0.0281696]
[1738286527707,7.3273777,237.59,237.56,0.0281696]
[1738286529211,4.2089,237.58,237.56,0.0281696]
[1738286533306,0.02885388,237.6,237.56,0.0281696]
[1738286533915,0.02885388,237.6,237.59,4.2087]
[1738286534311,0.02885388,237.6,237.56,0.0281696]
[1738286534615,0.02885388,237.6,237.57,4.2088]
[1738286542014,0.02885388,237.6,237.56,0.0281696]
[1738286542215,0.02885388,237.6,237.58,4.2088]
[1738286542812,0.02885388,237.6,237.59,4.2087]
[1738286547720,7.35623158,237.6,237.56,0.0281696]
[1738286547923,7.3273777,237.57,237.56,0.0281696]
[1738286548218,7.3273777,237.57,237.45,2.7449]
[1738286548425,7.3273777,237.5,237.45,6.956]
[1738286549021,7.3273777,237.52,237.48,4.2105]
[1738286549423,7.35679078,237.52,237.48,4.23804855]
[1738286553426,0.02941308,237.52,237.49,7.3273777]
[1738286554029,7.3273777,237.58,237.51,7.3273777]
[1738286554224,7.3273777,237.6,237.53,7.3273777]
[1738286554525,7.3273777,237.6,237.56,4.2091]
[1738286555228,7.35541451,237.6,237.56,0.03136802]
[1738286555419,0.02803681,237.6,237.56,0.03136802]
[1738286555926,0.02803681,237.6,237.59,4.2087]
[1738286561929,7.3273777,237.68,237.66,4.2074]
[1738286562223,7.3273777,237.68,237.61,7.3273777]
[1738286562632,7.3273777,237.66,237.63,4.2079]
[1738286564724,0.02740243,237.67,237.62,0.0310574]
[1738286565330,0.02740243,237.67,237.65,4.2076]
[1738286566931,7.3273777,237.66,237.62,4.2391574]
[1738286571037,7.3273777,237.66,237.62,0.0310574]
[1738286571227,0.02740243,237.67,237.62,0.0310574]
[1738286572236,7.3273777,237.66,237.62,0.0310574]
[1738286573238,7.3273777,237.66,237.62,4.2391574]
[1738286573637,7.3273777,237.66,237.63,4.208]
[1738286574331,7.3273777,237.66,237.62,0.0310574]
[1738286574530,0.02740243,237.67,237.65,4.2076]
[1738286576039,0.02740243,237.67,237.64,4.2078]
[1738286580239,0.02740243,237.67,237.62,0.0310574]
[1738286580539,4.23460243,237.67,237.63,4.2079]
[1738286580738,0.02740243,237.67,237.62,0.0310574]
[1738286583143,0.02740243,237.67,237.64,4.2076]
[1738286583844,0.02740243,237.67,237.66,4.2074]
[1738286586341,4.2058,237.76,237.65,7.3273777]
[1738286586646,7.3273777,237.73,237.66,2.8303]
[1738286586847,7.3273777,237.7,237.66,2.8303]
[1738286587548,7.35426295,237.7,237.66,2.85815506]
[1738286588250,7.35426295,237.7,237.66,0.02785506]
[1738286589044,7.3273777,237.67,237.54,7.3273777]
[1738286589347,7.3273777,237.62,237.53,6.37657906]
[1738286589744,7.3273777,237.62,237.53,13.70395676]
[1738286590141,7.3273777,237.62,237.57,4.209]
[1738286590341,0.02798862,237.6,237.57,4.209]
[1738286590948,0.02798862,237.6,237.58,4.2088]
[1738286596657,0.02798862,237.6,237.55,7.35470561]
[1738286596955,0.02798862,237.6,237.57,4.209]
[1738286598458,0.02798862,237.6,237.55,7.35470561]
[1738286598857,0.02798862,237.6,237.57,7.3273777]
[1738286600162,0.02798862,237.6,237.59,4.2087]
[1738286602562,0.02798862,237.6,237.57,4.209]
[1738286603563,0.02798862,237.6,237.58,4.2088]
[1738286604162,0.02798862,237.6,237.55,7.35470561]
[1738286605164,0.02798862,237.6,237.58,4.2088]
[1738286605367,4.2088,237.58,237.55,0.02732791]
[1738286607259,7.35536632,237.6,237.55,0.02732791]
[1738286607456,4.2087,237.59,237.55,0.02732791]
[1738286609861,0.02798862,237.6,237.55,4.23662791]
[1738286610062,0.02798862,237.6,237.55,0.02732791]
[1738286611066,0.02798862,237.6,237.56,4.2092]
[1738286613269,0.02798862,237.6,237.57,4.209]
[1738286614969,0.02798862,237.6,237.55,11.56390561]
[1738286617070,4.23648862,237.6,237.55,11.56390561]
[1738286617271,4.23648862,237.6,237.55,4.23652791]
[1738286617474,7.35536632,237.6,237.55,0.02732791]
[1738286619071,4.2091,237.57,237.55,0.02732791]
[1738286619971,4.2092,237.56,237.55,0.02732791]
[1738286621871,4.2101,237.51,237.46,7.3273777]
[1738286623074,4.23796713,237.51,237.46,7.35791609]
[1738286624074,0.02786713,237.51,237.46,7.35791609]
[1738286624271,0.02786713,237.51,237.47,4.2107]
[1738286624872,0.02786713,237.51,237.48,4.2106]
[1738286625073,0.02786713,237.51,237.46,7.35791609]
[1738286626177,7.3273777,237.5,237.46,0.03053839]
[1738286626879,4.2106,237.49,237.46,0.03053839]
[1738286627277,4.2107,237.48,237.46,0.03053839]
[1738286628480,4.2108,237.47,237.46,0.03053839]
[1738286630582,4.2106,237.49,237.46,0.03053839]
[1738286631684,4.2106,237.48,237.46,0.03053839]
[1738286631983,0.02786713,237.51,237.46,0.03053839]
[1738286633081,4.2104,237.49,237.46,0.03053839]
[1738286633277,0.02786713,237.51,237.46,0.03053839]
[1738286634085,4.23806713,237.51,237.46,4.24143839]
[1738286635293,4.2108,237.48,237.46,0.03053839]
[1738286638892,7.3273777,237.5,237.46,0.03053839]
[1738286639089,4.2108,237.47,237.46,0.03053839]
[1738286648901,7.3273777,237.48,237.32,7.3273777]
[1738286649206,7.3273777,237.39,237.32,7.3273777]
[1738286649696,7.3273777,237.39,237.33,4.2133]
[1738286649897,7.3273777,237.39,237.34,0.03121828]
[1738286650094,0.03103468,237.38,237.34,0.03121828]
[1738286652101,4.24343468,237.38,237.34,0.03121828]
[1738286652402,0.03103468,237.38,237.34,0.03121828]
[1738286653303,4.2126,237.37,237.34,0.03121828]
[1738286654706,4.24343468,237.38,237.34,0.03121828]
[1738286654998,0.03103468,237.38,237.34,0.03121828]
[1738286655202,0.03103468,237.38,237.34,4.24421828]
[1738286656606,0.03103468,237.38,237.35,4.2129]
[1738286658506,0.03103468,237.38,237.36,4.2126]
[1738286658703,0.03103468,237.38,237.34,7.35859598]
[1738286658905,0.03103468,237.38,237.36,7.3273777]
[1738286659304,0.03103468,237.38,237.37,4.2126]
[1738286659500,4.2111,237.46,237.36,7.3273777]
[1738286659706,7.3273777,237.47,237.39,7.3273777]
[1738286659906,4.211,237.46,237.41,4.2118]
[1738286660205,4.211,237.46,237.39,7.3273777]
[1738286660703,0.03016161,237.45,237.4,0.03187464]
[1738286661099,0.03016161,237.45,237.42,4.2117]
[1738286662009,0.03016161,237.45,237.44,4.2113]
[1738286664004,4.21,237.52,237.43,7.3273777]
[1738286664205,11.5370777,237.53,237.46,7.3273777]
[1738286665012,11.5368777,237.55,237.49,4.2104]
[1738286665212,0.0284117,237.52,237.49,4.2104]
[1738286665906,0.0284117,237.52,237.48,7.3273777]
[1738286666111,0.0284117,237.52,237.5,7.3273777]
[1738286666311,11.5361777,237.59,237.5,7.3273777]
[1738286666704,11.5361777,237.59,237.52,7.3273777]
[1738286667104,11.5361777,237.59,237.52,11.5371777]
[1738286667309,11.5361777,237.59,237.52,4.2098]
[1738286667513,0.02798647,237.58,237.53,0.02764483]
[1738286667714,4.23678647,237.58,237.53,0.02764483]
[1738286669014,7.3273777,237.57,237.53,0.02764483]
[1738286670015,7.3273777,237.55,237.53,0.02764483]
[1738286671223,4.2095,237.54,237.53,0.02764483]
[1738286673116,7.3273777,237.55,237.43,4.2115]
[1738286673324,4.2109,237.47,237.41,1.3569]
[1738286673522,7.3273777,237.47,237.41,1.3569]
[1738286673726,7.3273777,237.49,237.42,4.2116]
[1738286673922,4.2106,237.48,237.42,4.2116]
[1738286674224,0.03131595,237.47,237.43,0.02739645]
[1738286676222,0.03131595,237.47,237.44,4.2113]
[1738286677818,0.03131595,237.47,237.44,7.3273777]
[1738286678022,0.03131595,237.47,237.46,11.5383777]
[1738286680428,0.03131595,237.47,237.46,7.3273777]
[1738286680829,0.03131595,237.47,237.45,4.2111]
[1738286683723,0.03131595,237.47,237.44,11.5386777]
[1738286683930,0.03131595,237.47,237.44,7.3273777]
[1738286685437,4.2104,237.5,237.44,7.3273777]
[1738286685626,7.3273777,237.53,237.44,7.3273777]
[1738286686635,0.03231769,237.51,237.44,7.3273777]
[1738286687336,4.24241769,237.51,237.47,4.2107]
[1738286687524,0.03231769,237.51,237.46,7.3273777]
[1738286688027,0.03231769,237.51,237.48,7.3273777]
[1738286688534,0.03231769,237.51,237.5,11.5376777]
[1738286688727,7.3273777,237.61,237.5,7.3273777]
[1738286688927,7.3273777,237.61,237.52,7.3273777]
[1738286689130,4.2087,237.59,237.52,11.5370777]
[1738286689335,11.5360777,237.59,237.52,11.5370777]
[1738286689733,11.5360777,237.59,237.52,4.2097]
[1738286689932,4.24003388,237.58,237.53,0.03220792]
[1738286691337,0.03103388,237.58,237.53,0.03220792]
[1738286693146,0.03103388,237.58,237.53,4.24180792]
[1738286694241,0.03103388,237.58,237.53,0.03220792]
[1738286694441,4.23993388,237.58,237.53,0.03220792]
[1738286696137,0.03103388,237.58,237.53,0.03220792]
[1738286696436,7.3273777,237.57,237.53,0.03220792]
[1738286696842,4.2092,237.56,237.53,0.03220792]
[1738286698644,7.3273777,237.57,237.53,0.03220792]
[1738286699245,0.03103388,237.58,237.53,4.24190792]
[1738286699449,0.03103388,237.58,237.53,0.03220792]
[1738286699944,0.03103388,237.58,237.53,4.24190792]
[1738286702343,4.23993388,237.58,237.53,4.24190792]
[1738286702948,0.03103388,237.58,237.53,4.24190792]
[1738286703144,0.03103388,237.58,237.54,7.3273777]
[1738286703745,0.03103388,237.58,237.55,4.2094]
[1738286703945,0.03103388,237.58,237.53,0.03220792]
[1738286704350,7.3273777,237.57,237.53,0.03220792]
[1738286704647,7.3273777,237.55,237.53,0.03220792]
[1738286704845,4.2095,237.54,237.53,0.03220792]
[1738286710450,4.2107,237.48,237.42,4.2115]
[1738286710953,7.3273777,237.49,237.42,4.2115]
[1738286711254,11.5379777,237.49,237.42,4.2115]
[1738286711548,0.0305164,237.48,237.43,0.03103845]
[1738286712753,4.2412164,237.48,237.43,0.03103845]
[1738286714951,0.0305164,237.48,237.43,7.35841615]
[1738286716155,0.0305164,237.48,237.44,4.2113]
[1738286716955,0.0305164,237.48,237.43,11.56991615]
[1738286718560,0.0305164,237.48,237.45,7.3273777]
[1738286720062,0.0305164,237.48,237.46,4.211]
[1738286722864,4.211,237.47,237.43,7.35841615]
[1738286723066,0.0305164,237.48,237.43,0.03103845]
[1738286724063,4.2413164,237.48,237.43,7.35841615]
[1738286724460,0.0305164,237.48,237.43,7.35841615]
[1738286726258,0.0305164,237.48,237.43,0.03103845]
[1738286726866,4.2108,237.47,237.43,0.03103845]
[1738286727666,0.0305164,237.48,237.43,0.03103845]
[1738286727967,7.3273777,237.44,237.29,7.3273777]
[1738286728168,4.2126,237.37,237.3,4.2138]
[1738286728363,7.3273777,237.4,237.31,7.3273777]
[1738286728565,7.3273777,237.4,237.33,7.3273777]
[1738286728768,4.2119,237.41,237.33,11.5405777]
[1738286728965,0.03029014,237.39,237.34,0.03172408]
[1738286731170,0.03029014,237.39,237.35,4.2128]
[1738286734270,4.2124,237.38,237.34,0.03172408]
[1738286734471,0.03029014,237.39,237.34,0.03172408]
[1738286736072,0.03029014,237.39,237.34,4.24472408]
[1738286736274,0.03029014,237.39,237.34,0.03172408]
[1738286736572,0.03029014,237.39,237.35,7.3273777]
[1738286737674,0.03029014,237.39,237.35,8.7739777]
[1738286738176,0.03029014,237.39,237.37,4.2125]
[1738286738376,0.03029014,237.39,237.35,1.4466]
[1738286739473,0.03029014,237.39,237.36,4.2127]
[1738286742177,0.03029014,237.39,237.35,1.4466]
[1738286742377,0.03029014,237.39,237.37,4.2126]
[1738286744980,0.03029014,237.39,237.38,4.2124]
[1738286760285,0.03029014,237.39,237.37,4.2125]
[1738286762889,0.03029014,237.39,237.35,1.4466]
[1738286763084,0.03029014,237.39,237.38,4.2124]
[1738286763284,7.3273777,237.48,237.37,7.3273777]
[1738286763489,7.3273777,237.48,237.39,7.3273777]
[1738286764387,0.02867468,237.46,237.41,7.35644523]
[1738286765791,0.02867468,237.46,237.45,4.2111]
[1738286767090,7.3273777,237.52,237.45,7.3273777]
[1738286767301,7.3273777,237.54,237.45,7.3273777]
[1738286768187,7.3273777,237.54,237.5,4.2102]
[1738286768393,0.03133861,237.52,237.5,4.2102]
[1738286771098,0.03133861,237.52,237.47,7.35461962]
[1738286771597,7.3273777,237.51,237.47,0.02724192]
[1738286773202,7.3273777,237.51,237.49,4.2104]
[1738286774501,0.03133861,237.52,237.49,4.2104]
[1738286775603,0.03133861,237.52,237.47,0.02724192]
[1738286775795,0.03133861,237.52,237.5,4.2102]
[1738286777698,0.03133861,237.52,237.47,7.35461962]
[1738286777903,0.03133861,237.52,237.51,4.2101]
[1738286779305,0.03133861,237.52,237.51,11.5374777]
[1738286790614,3.861e-05,237.52,237.51,11.5374777]
[1738286793017,4.2075,237.66,237.62,4.2081]
[1738286794114,4.2075,237.66,237.62,4.24034336]
[1738286794316,4.23192182,237.66,237.62,4.24034336]
[1738286794516,7.3273777,237.65,237.62,4.24034336]
[1738286799625,7.3273777,237.65,237.62,0.03224336]
[1738286801121,4.23182182,237.66,237.62,0.03224336]
[1738286803425,0.02442182,237.66,237.62,0.03224336]
[1738286803729,0.02442182,237.66,237.62,7.35962106]
[1738286805227,4.23192182,237.66,237.62,7.35962106]
[1738286805429,0.02442182,237.66,237.64,7.3273777]
[1738286808726,7.3273777,237.75,237.64,7.3273777]
[1738286808928,7.3273777,237.71,237.63,7.3273777]
[1738286809328,7.3273777,237.71,237.63,11.5352777]
[1738286809827,4.2073,237.67,237.65,0.02713565]
[1738286811428,4.2074,237.66,237.65,0.02713565]
[1738286814738,4.2088,237.59,237.54,4.2094]
[1738286814938,7.3273777,237.58,237.49,7.3273777]
[1738286815133,7.3273777,237.56,237.49,7.3273777]
[1738286815334,4.21,237.52,237.47,7.3273777]
[1738286815535,7.3273777,237.56,237.47,7.3273777]
[1738286815730,0.02713565,237.54,237.49,0.03191726]
[1738286816233,0.02713565,237.54,237.49,7.35929496]
[1738286816640,0.02713565,237.54,237.51,7.3273777]
[1738286817340,0.02713565,237.54,237.49,7.35929496]
[1738286818336,0.02713565,237.54,237.49,0.03191726]
[1738286818638,7.35451335,237.54,237.49,0.03191726]
[1738286818841,4.2099,237.52,237.49,0.03191726]
[1738286819038,7.35451335,237.54,237.49,0.03191726]
[1738286819638,0.02713565,237.54,237.49,0.03191726]
[1738286820141,4.23683565,237.54,237.49,0.03191726]
[1738286821739,0.02713565,237.54,237.49,0.03191726]
[1738286822034,4.2098,237.53,237.49,0.03191726]
[1738286823742,0.02713565,237.54,237.49,0.03191726]
[1738286824041,0.02713565,237.54,237.5,4.2102]
[1738286824840,0.02713565,237.54,237.49,0.03191726]
[1738286825944,0.02713565,237.54,237.49,7.35929496]
[1738286827146,0.02713565,237.54,237.5,4.2102]
[1738286827346,4.2097,237.53,237.49,7.35929496]
[1738286828146,0.02713565,237.54,237.49,7.35929496]
[1738286828542,0.02713565,237.54,237.51,7.3273777]
[1738286828739,0.02713565,237.54,237.52,4.2099]
[1738286828943,0.02713565,237.54,237.49,7.35929496]
[1738286829342,0.02713565,237.54,237.5,4.2101]
[1738286830145,0.02713565,237.54,237.51,4.2101]
[1738286833650,0.02713565,237.54,237.52,4.2098]
[1738286833847,0.02713565,237.54,237.49,7.35929496]
[1738286833848,0.02713565,237.54,237.51,7.3273777]
[1738286834248,0.02713565,237.54,237.53,4.2097]
[1738286836648,0.02713565,237.54,237.49,11.56959496]
[1738286836849,0.02713565,237.54,237.49,7.35929496]
[1738286838147,0.02713565,237.54,237.51,4.2101]
[1738286839350,0.02713565,237.54,237.52,4.2099]
[1738286840149,0.02713565,237.54,237.49,7.35929496]
[1738286840450,0.02713565,237.54,237.51,4.2101]
[1738286840751,0.02713565,237.54,237.53,4.2097]
[1738286843052,4.211,237.46,237.45,1.36077719]
[1738286843242,7.3273777,237.48,237.39,7.3273777]
[1738286843549,11.5388777,237.43,237.35,11.5402777]
[1738286843849,7.3273777,237.43,237.35,4.2129]
[1738286844147,7.3273777,237.43,237.33,11.4117777]
[1738286844347,0.0320734,237.41,237.37,0.0323421]
[1738286844544,0.0320734,237.41,237.37,7.3597198]
[1738286844942,0.0320734,237.41,237.39,4.2121]
[1738286845645,7.3594511,237.41,237.37,0.0323421]
[1738286845853,7.3273777,237.39,237.37,0.0323421]
[1738286846347,7.3273777,237.39,237.27,7.3273777]
[1738286846542,7.3273777,237.32,237.23,7.3273777]
[1738286847448,7.3273777,237.32,237.27,4.2142]
[1738286847651,0.02763388,237.3,237.25,0.03031152]
[1738286847846,0.02763388,237.3,237.23,7.3273777]
[1738286847847,7.3273777,237.26,237.16,7.3273777]
[1738286848047,7.3273777,237.24,237.16,7.3273777]
[1738286848247,7.3273777,237.24,237.18,4.2158]
[1738286848445,7.3273777,237.28,237.2,7.3273777]
[1738286848951,7.3273777,237.28,237.13,2.8258]
[1738286848952,7.3273777,237.32,237.24,7.3273777]
[1738286849151,0.03052591,237.26,237.24,7.3273777]
[1738286849559,0.03052591,237.26,237.25,4.2147]
[1738286850651,0.03052591,237.26,237.24,11.5421777]
[1738286850956,0.03052591,237.26,237.24,4.2148]
[1738286851352,7.35790361,237.26,237.22,4.24562684]
[1738286851554,7.35790361,237.26,237.22,0.03042684]
[1738286851555,7.3273777,237.24,237.22,0.03042684]
[1738286852658,0.03052591,237.26,237.22,0.03042684]
[1738286853261,11.51571309,237.25,237.22,0.03042684]
[1738286854158,4.2149,237.24,237.22,2.684e-05]
[1738286854362,11.51571309,237.24,236.98,368.21225904]
[1738286854557,11.51571309,237.16,237.01,0.76366017]
[1738286854761,11.51571309,237.16,237.0,12.94591309]
[1738286855357,11.51571309,237.16,237.13,4.2168]
[1738286855558,0.0317846,237.1,237.06,0.02776817]
[1738286855754,11.51571309,237.19,237.03,11.51571309]
[1738286855961,8.014e-05,237.1,237.06,11.54304857]
[1738286856356,11.51571309,237.22,237.07,1.385]
[1738286856559,11.51571309,237.22,237.16,4.2162]
[1738286856759,11.51571309,237.19,237.07,1.385]
[1738286857266,0.03019331,237.15,237.13,4.2167]
[1738286858062,0.03019331,237.15,237.12,4.2169]
[1738286858567,0.03019331,237.15,237.13,4.2168]
[1738286863567,0.03019331,237.15,237.11,0.02763119]
[1738286863772,0.03019331,237.15,237.14,4.2167]
[1738286864072,1.3501,237.25,237.13,11.51571309]
[1738286865274,0.0318536,237.21,237.17,0.02677063]
[1738286865874,0.0318536,237.21,237.2,4.2156]
[1738286868575,11.51571309,237.34,237.28,4.2141]
[1738286868879,11.51571309,237.34,237.19,11.51571309]
[1738286868880,11.51571309,237.34,237.22,11.51571309]
[1738286869273,15.72881309,237.34,237.22,11.51571309]
[1738286869668,11.51571309,237.34,237.29,4.2139]
[1738286869875,0.03203079,237.3,237.26,0.0275862]
[1738286870272,0.03203079,237.3,237.29,4.214]
[1738286873378,0.03203079,237.3,237.26,0.0275862]
[1738286874678,0.03203079,237.3,237.29,4.214]
[1738286877277,4.212,237.41,237.36,4.2127]
[1738286877471,4.212,237.41,237.28,11.51571309]
[1738286877677,11.51571309,237.43,237.28,11.51571309]
[1738286878580,0.03120777,237.38,237.33,0.03085339]
[1738286880180,0.03120777,237.38,237.35,4.2129]
[1738286880370,0.03120777,237.38,237.33,0.03085339]
[1738286880575,11.51571309,237.37,237.33,0.03085339]
[1738286880776,11.51571309,237.34,237.33,0.03085339]
[1738286880973,11.51571309,237.34,237.22,55.58649068]
[1738286881177,11.51571309,237.3,237.22,55.58649068]
[1738286881479,11.51571309,237.3,237.17,1.4566]
[1738286881680,4.2147,237.25,237.2,4.2155]
[1738286881882,11.51571309,237.27,237.17,1.4566]
[1738286882280,0.02969991,237.24,237.2,0.03069864]
[1738286883175,0.02969991,237.24,237.21,4.2154]
[1738286884384,0.02969991,237.24,237.2,0.03069864]
[1738286886081,0.02969991,237.24,237.2,4.24619864]
[1738286886977,0.02969991,237.24,237.2,0.03069864]
[1738286887184,0.02969991,237.24,237.22,4.2151]
[1738286888285,0.02969991,237.24,237.23,4.2151]
[1738286889483,2.8872,237.36,237.3,4.2138]
[1738286889688,2.8872,237.36,237.22,11.51571309]
[1738286890186,7.1,237.36,237.22,11.51571309]
[1738286890688,0.03013868,237.31,237.28,4.2141]
[1738286890883,0.03013868,237.31,237.27,0.02757247]
[1738286891381,0.03013868,237.31,237.3,4.2138]
[1738286892787,0.03013868,237.31,237.28,4.214]
[1738286892984,0.03013868,237.31,237.27,0.02757247]
[1738286893185,11.54585177,237.31,237.27,0.02757247]
[1738286893389,15.72991309,237.28,237.27,0.02757247]
[1738286894586,0.03013868,237.31,237.14,1.3438]
[1738286894587,4.2149,237.24,237.15,5.98868115]
[1738286894893,21.08507945,237.3,237.15,5.98868115]
[1738286895695,0.03109284,237.25,237.2,0.0289994]
[1738286896298,0.03109284,237.25,237.2,4.2444994]
[1738286898895,0.03109284,237.25,237.2,0.0289994]
[1738286899094,4.2149,237.24,237.2,0.0289994]
[1738286900698,0.03109284,237.25,237.2,0.0289994]
[1738286901302,0.03109284,237.25,237.24,4.2149]
[1738286905411,9.284e-05,237.25,237.24,4.2149]
[1738286905604,1.4087,237.37,237.3,4.2137]
[1738286906802,0.02749288,237.36,237.31,0.02780446]
[1738286908105,18.45257233,237.36,237.31,0.02780446]
[1738286908303,19.78987233,237.36,237.31,0.02780446]
[1738286909200,4.2135,237.32,237.31,0.02780446]
[1738286913509,18.42507945,237.32,237.16,1.455]
[1738286913705,18.42507945,237.28,237.16,1.455]
[1738286913905,4.2149,237.25,237.16,4.2162]
[1738286914110,18.42507945,237.28,237.14,1.3438]
[1738286914514,0.02977459,237.24,237.19,0.02719589]
[1738286915112,4.24477459,237.24,237.19,0.02719589]
[1738286915411,0.02977459,237.24,237.19,0.02719589]
[1738286915710,0.02977459,237.24,237.23,4.2151]
[1738286918008,19.76237945,237.36,237.19,0.02719589]
[1738286918209,19.76237945,237.36,237.18,18.42507945]
[1738286918911,19.76237945,237.36,237.16,1.3821]
[1738286919311,0.02687075,237.28,237.24,0.03244911]
[1738286920513,4.2144,237.27,237.24,0.03244911]
[1738286924515,0.02687075,237.28,237.24,0.03244911]
[1738286926217,0.02687075,237.28,237.24,4.24724911]
[1738286926417,0.02687075,237.28,237.24,0.03244911]
[1738286926714,0.02687075,237.28,237.24,4.24714911]
[1738286927514,0.02687075,237.28,237.25,4.2146]
[1738286928021,0.02687075,237.28,237.24,0.03244911]
[1738286928215,0.02687075,237.28,237.24,4.24724911]
[1738286929120,0.02687075,237.28,237.24,0.03244911]
[1738286932220,11.50985196,237.27,237.24,0.03244911]
[1738286933221,4.2147,237.25,237.24,0.03244911]
[1738286949026,4.2145,237.26,237.24,0.03244911]
[1738286950433,4.24117075,237.28,237.24,0.03244911]
[1738286950632,0.02687075,237.28,237.24,0.03244911]
[1738286951130,4.2144,237.27,237.24,0.03244911]
[1738286952232,0.02687075,237.28,237.24,0.03244911]
[1738286954332,0.02687075,237.28,237.24,4.24734911]
[1738286958634,0.02687075,237.28,237.24,0.03244911]
[1738286959734,0.02687075,237.28,237.24,4.24734911]
[1738286962836,0.02687075,237.28,237.25,4.2147]
[1738286963535,0.02687075,237.28,237.24,0.03244911]
[1738286963737,0.02687075,237.28,237.27,4.2143]
[1738286964034,0.02687075,237.28,237.25,2.7757]
[1738286964636,7.36792098,237.27,237.25,2.7757]
[1738286965439,0.02687075,237.28,237.25,2.7757]
[1738286965440,0.02687075,237.28,237.25,6.9904]
[1738286967339,0.02687075,237.28,237.26,4.2145]
[1738286967536,0.02687075,237.28,237.25,2.7757]
[1738286968231,0.02687075,237.28,237.27,4.2143]
[1738286972537,7.39479173,237.28,237.25,2.7757]
[1738286972742,7.39479173,237.28,237.24,0.03244911]
[1738286974141,11.60909173,237.28,237.24,0.03244911]
[1738286974540,7.39479173,237.28,237.24,0.03244911]
[1738286974743,7.39479173,237.28,237.24,4.24734911]
[1738286975345,7.39479173,237.28,237.24,0.03244911]
[1738286976638,11.60909173,237.28,237.24,0.03244911]
[1738286978048,7.39479173,237.28,237.24,0.03244911]
[1738286978947,0.02687075,237.28,237.25,4.2146]
[1738286979542,0.02687075,237.28,237.26,4.2145]
[1738286979849,0.02687075,237.28,237.24,0.03244911]
[1738286980444,0.02687075,237.28,237.26,4.2145]
[1738286983549,0.02687075,237.28,237.27,4.2143]
[1738286987051,0.02687075,237.28,237.27,11.58222098]
[1738286988452,7.36792098,237.38,237.33,4.2133]
[1738286988952,4.2126,237.37,237.33,4.2133]